[Event "Polish Youth B18 Championship 2023"]
[Site "Jastrzebia Gora"]
[Date "2023.03.19"]
[Round "9.11"]
[White "Jedraszek, Pawel"]
[Black "Kolodziejski, Piotr"]
[Result "1/2-1/2"]
[ECO "B96"]
[WhiteElo "1944"]
[BlackElo "2118"]
[Annotator "TA"]
[PlyCount "97"]
[EventDate "2023.03.11"]
[EventType "swiss"]
[EventCountry "POL"]
[SourceTitle "playchess.com"]
[Source "ChessBase"]
[SourceQuality "1"]
[TimeControl "40/5400+30:1800+30"]

{[%evp 15,97,-17,28,0,0,-37,-49,-36,-4,0,-12,-82,-36,-91,-97,-111,-104,-112,-93,-85,-77,-70,-70,-63,-66,-64,-55,-63,-45,-48,-43,-48,-41,-37,-37,-90,-63,-66,-26,-29,-22,-28,-29,-22,-19,-60,-56,-48,0,-44,0,-51,-54,-79,-52,-60,0,-77,0,-60,0,-82,-40,-48,-51,-50,0,-49,0,-43,0,-45,-46,-62,-62,-62,-37,-64,-60,-65,-48,-73,-31,-71]} 1. e4 {[%emt 0:00:02]} c5 {[%emt 0:00:04]} 2. Nf3 {[%emt 0:00:06]} d6 {[%emt 0:00:03]} 3. d4 {[%emt 0:00:11]} cxd4 {[%emt 0:00:03]} 4. Nxd4 {[%emt 0:00:06]} Nf6 {[%emt 0:00:04]} 5. Nc3 {[%emt 0:00:15]} a6 {[%emt 0:00:05]} 6. Bg5 {[%emt 0:00:45]} e6 {[%emt 0:00:21]} 7. f4 {[%emt 0:00:31]} b5 {[%emt 0:00:18]} 8. Bd3 {[%emt 0:13:25]} Nbd7 {[%emt 0:04:05]} (8... b4 $5 {[%cal Rb4c3]} 9. Bxf6 gxf6 $11) 9. Qe2 {[%emt 0:05:22] [#] Threatens to win with e5. B96: Sicilian Najdorf: 6 Bg5 e6 7 f4, lines other than 7...Qb6 and 7...Be7.} (9. f5 $5 {[%cal Rf5e6]} e5 10. Nc6 $11) 9... Qb6 {[%emt 0:09:34]} 10. Nf3 {[%emt 0:00:40]} (10. Nb3 $5 {[%cal Re4e5]}) 10... Bb7 {[%emt 0:01:54]} 11. e5 {[%emt 0:14:04] [#]} Nd5 $146 {[%emt 0:12:02]} ({Predecessor:} 11... dxe5 12. fxe5 Nd5 13. Nxd5 Bxd5 14. Be4 Bc5 15. O-O-O h6 16. Bxd5 exd5 17. Bh4 Qe6 {1-0 Efroimski,M (2221)-Visanescu,D (2010) EU-ch U16 Girls 2011 (7)}) 12. Nxd5 {[%emt 0:03:00]} Bxd5 {[%emt 0:00:05]} 13. Bh4 {[%emt 0:07:14]} (13. O-O-O $1 $11 {keeps the balance.}) 13... dxe5 {[%emt 0:11:26]} (13... Nc5 $17) 14. fxe5 {[%emt 0:00:24]} ({Better is} 14. Nxe5 $15 Nxe5 15. fxe5) 14... Nc5 $17 {[%emt 0:01:57]} 15. Bf2 {[%emt 0:05:13]} Nxd3+ {[%emt 0:07:36]} 16. Qxd3 {[%emt 0:00:06]} Qa5+ {[%emt 0:03:06]} 17. c3 {[%emt 0:01:55]} Be7 {[%emt 0:00:41]} 18. O-O {[%emt 0:02:01]} O-O {[%emt 0:04:59]} 19. Rfe1 {[%emt 0:02:54]} Qc7 {[%emt 0:05:51]} (19... Bxa2 $2 20. Qd7 $18) 20. Bd4 {[%emt 0:03:48]} Qb7 {[%emt 0:03:49]} 21. a3 {[%emt 0:04:23]} Rac8 {[%emt 0:02:09]} 22. Qe3 {[%emt 0:01:08]} a5 {[%emt 0:06:07] White is weak on the light squares} 23. Re2 {[%emt 0:01:41]} Qc6 {[%emt 0:03:30]} 24. Ng5 {[%emt 0:03:27]} h6 {[%emt 0:08:22]} 25. Nh3 {[%emt 0:01:25]} ({White should play} 25. Ne4 $15) 25... Rfd8 {[%emt 0:00:38]} 26. Nf4 {[%emt 0:01:21]} Bg5 {[%emt 0:01:09]} 27. Qg3 {[%emt 0:00:53]} Be4 {[%emt 0:01:39]} 28. h4 {[%emt 0:02:02]} Be7 {[%emt 0:01:25]} 29. Nh5 {[%emt 0:10:05][%csl Gh5][%cal Rg3g7] [#]} Bg6 {[%emt 0:00:03] This pair of bishops is nice.} 30. Nf4 {[%emt 0:00:31]} Bf5 {[%emt 0:00:11]} 31. Nh5 {[%emt 0:00:33][%csl Gh5][%cal Rg3g7]} Bg6 {[%emt 0:00:04]} 32. Nf4 {[%emt 0:00:07]} Bf5 {[%emt 0:00:41]} 33. Nh5 $1 {[%emt 0:00:17][%csl Gh5][%cal Rg3g7]} Bf8 {[%emt 0:02:03]} 34. Rf1 {[%emt 0:01:53]} Bg6 {[%emt 0:01:23]} 35. Nf4 {[%emt 0:00:51]} Bf5 {[%emt 0:00:42]} 36. Nh5 $1 {[%emt 0:00:25]} Bg6 {[%emt 0:00:16]} 37. Nf4 {[%emt 0:00:21]} Bf5 {[%emt 0:00:04]} 38. Nh5 $1 {[%emt 0:00:10]} Kh7 {[%emt 0:02:42]} 39. Rd2 {[%emt 0:08:46]} Bg6 {[%emt 0:01:01]} 40. Nf4 {[%emt 0:00:00]} Bf5 {[%emt 0:00:00]} (40... Be4 $5 {[%cal Rb5b4]}) 41. Nh5 $1 {[%emt 0:01:53]} Bg6 {[%emt 0:03:43]} 42. Nf4 {[%emt 0:03:09]} Bf5 {[%emt 0:02:29]} (42... Be4 $5 {[%cal Rb5b4]}) 43. Nh5 $1 {[%emt 0:00:06]} Rd7 {[%emt 0:00:52]} 44. Qf4 {[%emt 0:05:18]} Bg6 {[%emt 0:05:08]} 45. Ng3 {[%emt 0:00:24]} Kh8 {[%emt 0:00:28]} 46. Rfd1 {[%emt 0:02:08]} Rcd8 {[%emt 0:00:41]} 47. Kh2 {[%emt 0:00:44]} Qc4 {[%emt 0:04:56]} 48. Ne2 {[%emt 0:08:39]} f6 {[%emt 0:07:54]} 49. g3 {[%emt 0:04:45] Weighted Error Value: White=0.11 (very precise) /Black=0.22 (precise)} (49. exf6 $2 {perishes.} Bd6 50. fxg7+ Kh7 $19) 1/2-1/2

[Event "Polish Youth B18 Championship 2023"]
[Site "Jastrzebia Gora"]
[Date "2023.03.19"]
[Round "9.12"]
[White "Dziendziel, Mateusz"]
[Black "Syrkiewicz, Michal"]
[Result "1-0"]
[ECO "B40"]
[WhiteElo "2084"]
[BlackElo "2000"]
[Annotator "TA"]
[PlyCount "113"]
[EventDate "2023.03.11"]
[EventType "swiss"]
[EventCountry "POL"]
[SourceTitle "playchess.com"]
[Source "ChessBase"]
[SourceQuality "1"]
[TimeControl "40/5400+30:1800+30"]

{[%evp 9,113,8,16,8,15,0,0,0,0,0,0,0,0,0,0,-19,-8,-25,-41,-35,-27,-23,-17,-29,0,16,36,-31,-18,-20,26,-36,0,0,-7,-23,0,-45,-34,-154,-153,-162,-61,-192,-140,-125,-139,-139,-82,-64,-65,-60,192,185,360,353,344,219,216,160,159,160,294,324,312,298,1186,250,243,243,236,236,276,274,206,204,208,193,212,212,244,272,362,0,219,0,362,362,373,355,355,355,364,364,363,362,348,348,665,658,29971,29971,29969,29970,6195,6038]} 1. e4 {[%emt 0:00:02]} c5 {[%emt 0:00:06]} 2. Nf3 {[%emt 0:00:03]} e6 {[%emt 0:00:05]} 3. g3 {[%emt 0:00:02]} Nc6 {[%emt 0:00:27]} 4. Bg2 {[%emt 0:00:03]} Nf6 {[%emt 0:00:46]} 5. Qe2 {[%emt 0:00:08]} e5 {[%emt 0:00:14]} 6. O-O {[%emt 0:00:05] B40: Sicilian: 2...e6, Unusual lines.} Be7 {[%emt 0:00:20]} 7. c3 {[%emt 0:00:05][%cal Od2d4]} O-O {[%emt 0:00:47]} 8. Na3 $1 {[%emt 0:00:16] The position is equal. 8.Na3 scores better than 8.Rd1.} Re8 {[%emt 0:00:49]} 9. d3 {[%emt 0:00:05]} h6 {[%emt 0:01:56]} 10. Nc4 {[%emt 0:00:09]} Bf8 {[%emt 0:01:06]} 11. h3 {[%emt 0:00:03]} d6 {[%emt 0:02:56][%cal Bd7d6,Bd6d5,Bd5d4][%mdl 32]} 12. Ne3 {[%emt 0:04:45] [#]} d5 $146 {[%emt 0:05:50]} ({Predecessor:} 12... Be6 13. Nh2 d5 14. Nhg4 Nxg4 15. hxg4 d4 16. Nd5 dxc3 17. bxc3 Ne7 18. c4 Nc6 {1-0 Andriasian,Z (2621)-Karavade,E (2415) Abu Dhabi op 23rd 2016 (4)}) 13. Nh4 {[%emt 0:01:13][%cal Re4d5]} (13. exd5 {seems wilder.} Nxd5 14. Nxd5 Qxd5 15. Nd2) 13... d4 {[%emt 0:04:46]} 14. Nd5 {[%emt 0:00:36]} Nxd5 {[%emt 0:03:32]} 15. exd5 {[%emt 0:00:07]} Ne7 {[%emt 0:00:14]} 16. c4 $1 {[%emt 0:00:32]} (16. Qxe5 $2 Nf5 17. Qf4 g5 $19) 16... g5 {[%emt 0:05:26]} 17. Nf3 {[%emt 0:01:04]} Ng6 {[%emt 0:00:16]} 18. Re1 {[%emt 0:09:13]} (18. Nd2 $14) 18... Bd7 $15 {[%emt 0:07:13]} 19. Nh2 {[%emt 0:02:27]} Rb8 {[%emt 0:04:52]} (19... f5 $142) 20. a4 {[%emt 0:04:29]} (20. Qh5 $11) 20... f5 {[%emt 0:08:03]} 21. Qh5 {[%emt 0:01:27]} Qf6 {[%emt 0:01:02]} 22. Bd2 {[%emt 0:04:16]} b6 {[%emt 0:05:34]} 23. b3 {[%emt 0:01:27][%cal Oh3h4]} Re7 {[%emt 0:02:34]} 24. f4 {[%emt 0:05:52]} gxf4 $17 {[%emt 0:05:46]} 25. gxf4 {[%emt 0:00:08]} Be8 {[%emt 0:02:43]} (25... exf4 26. Rxe7 Bxe7 27. Qxh6 $11) (25... Nxf4 $19 26. Bxf4 exf4 27. Rxe7 Bxe7) 26. Qe2 {[%emt 0:04:19]} (26. fxe5 $15 Nxe5 {[%mdl 64] Discovered Attack} 27. Qe2) 26... Nxf4 {[%emt 0:03:39]} (26... exf4 $19 27. Qf1 Re3) 27. Bxf4 {[%emt 0:00:36]} exf4 {[%emt 0:00:05]} 28. Qf2 {[%emt 0:00:58]} Re3 {[%emt 0:00:56]} (28... Bd7 $142 {Hoping for ...Re3.} 29. Rxe7 Bxe7 30. Qxf4 Bd6) 29. Qxf4 {[%emt 0:13:20]} Bd6 {[%emt 0:00:22]} 30. Ng4 {[%emt 0:00:14]} Qg6 {[%emt 0:08:04][%mdl 8192]} (30... fxg4 $2 31. Qxf6 Bf8 32. hxg4 $18) (30... Bxf4 $15 {stays ahead.} 31. Nxf6+ Kg7 32. Nxe8+ Rbxe8) 31. Qxf5 $1 $18 {[%emt 0:00:08][%mdl 64] Decoy} (31. Qxh6 $2 fxg4 32. Qxg6+ Bxg6 $19) 31... Re7 $2 {[%emt 0:05:08] [#]} (31... Rxe1+ {was necessary.} 32. Rxe1 Kg7 33. Nxh6 Bf7) 32. Rxe7 $1 {[%emt 0:01:14]} Bxe7 {[%emt 0:00:12] Black is weak on the light squares} 33. Re1 {[%emt 0:00:21]} Bg5 {[%emt 0:00:45]} 34. Qe5 {[%emt 0:01:54]} Rd8 {[%emt 0:01:04]} 35. Rf1 {[%emt 0:02:50] White is more active.} Bf7 {[%emt 0:07:59]} (35... Qd6 $16 36. Be4 Qxe5 37. Nxe5 Rd6) 36. Nf6+ {[%emt 0:02:59]} Bxf6 {[%emt 0:00:34]} 37. Rxf6 {[%emt 0:01:17]} ({Not} 37. Qxf6 Qxf6 38. Rxf6 Kg7 $16) 37... Qxd3 {[%emt 0:00:59]} (37... Qg5 38. Qxg5+ hxg5) 38. Rxh6 $2 {[%emt 0:00:39]} (38. Rf3 Qd1+ 39. Kh2 Qxf3 40. Bxf3) 38... Qe3+ {[%emt 0:00:12]} 39. Qxe3 {[%emt 0:00:02]} dxe3 {[%emt 0:00:05][%mdl 4096] Endgame KRB-KRB} 40. Kf1 {[%emt 0:00:00]} Re8 {[%emt 0:00:00]} 41. Bf3 {[%emt 0:12:40] Ke2 would be deadly.} Kg7 {[%emt 0:08:02] Dodges Ke2} 42. Rc6 {[%emt 0:00:19]} Bg6 {[%emt 0:02:37]} 43. Ke1 {[%emt 0:10:47][%cal Oa4a5] Strongly threatening a5!} Bc2 {[%emt 0:04:41]} 44. Bd1 {[%emt 0:00:04]} Bf5 {[%emt 0:00:24]} 45. Bg4 {[%emt 0:02:37]} Bc2 {[%emt 0:00:13]} 46. Bd1 {[%emt 0:19:39]} Bf5 {[%emt 0:01:29] [#]} 47. Bg4 {[%emt 0:00:58]} (47. Bh5 $142 $1 {[%cal Rh5e8]} Rh8 48. Bg4) 47... Bc2 {[%emt 0:00:14]} 48. d6 {[%emt 0:00:02]} Rd8 {[%emt 0:00:43]} 49. d7 {[%emt 0:01:45] aiming for Rc8.} Kf7 {[%emt 0:00:25] [#]} 50. a5 $1 {[%emt 0:02:21][%mdl 512]} Bxb3 {[%emt 0:01:24]} (50... bxa5 51. Rxc5) 51. axb6 {[%emt 0:01:46]} axb6 {[%emt 0:00:03]} 52. Be6+ {[%emt 0:01:01]} ({Worse is} 52. Rxb6 Bxc4 53. Rc6 Bb5 54. Rxc5 Bxd7 $11) 52... Ke7 {[%emt 0:00:05]} 53. Rxb6 {[%emt 0:00:04]} Ba4 {[%emt 0:00:12]} (53... Bxc4 54. Bxc4 Kxd7) 54. Bg4 {[%emt 0:00:03]} Ra8 {[%emt 0:02:13]} 55. Re6+ {[%emt 0:00:18]} Kf7 {[%emt 0:00:34] [#]} 56. Ra6 $3 {[%emt 0:00:13][%mdl 576] Deflection, Promotion} Rxa6 {[%emt 0:01:09]} 57. d8=Q {[%emt 0:00:07] Magnificent play by Dziendziel!   Weighted Error Value: White=0.38/Black=0.47} (57. d8=B $2 {too greedy.} Bb3 58. Bg5 Bxc4 59. Bxe3 Ra5 60. Bh5+ Kf6 $19) 1-0

[Event "Polish Youth B18 Championship 2023"]
[Site "Jastrzebia Gora"]
[Date "2023.03.19"]
[Round "9.13"]
[White "Budzisz, Adrian"]
[Black "Smetek, Michal"]
[Result "1/2-1/2"]
[ECO "B12"]
[WhiteElo "2069"]
[BlackElo "1787"]
[Annotator "TA"]
[PlyCount "93"]
[EventDate "2023.03.11"]
[EventType "swiss"]
[EventCountry "POL"]
[SourceTitle "playchess.com"]
[Source "ChessBase"]
[SourceQuality "1"]
[TimeControl "40/5400+30:1800+30"]

{[%evp 9,93,19,9,0,20,-41,-16,-50,0,-22,21,-24,41,35,42,38,66,61,101,97,170,16,113,109,140,96,227,207,283,207,211,208,470,470,454,454,432,32,39,32,32,33,25,24,35,25,25,25,17,17,97,0,0,0,0,-64,-63,-58,-43,-106,-93,-113,-113,-104,-68,-121,-119,-118,-107,-110,-99,-388,-392,-353,-375,-526,-507,-626,-291,-379,-444,-378,-148,-382,-112,-227]} 1. e4 {[%emt 0:01:46]} c6 {[%emt 0:00:35]} 2. d4 {[%emt 0:00:10]} d5 {[%emt 0:00:03]} 3. e5 {[%emt 0:00:07]} c5 {[%emt 0:00:26]} 4. dxc5 {[%emt 0:00:10]} e6 {[%emt 0:02:03]} 5. a3 {[%emt 0:00:15]} Bxc5 {[%emt 0:01:03]} 6. Qg4 {[%emt 0:00:48] B12: Caro-Kann: Advance Variation.} Bf8 {[%emt 0:04:39]} 7. b4 {[%emt 0:00:50] [#]} (7. Nc3 $11) 7... h5 $146 {[%emt 0:02:36]} ({Predecessor:} 7... Nc6 8. Bb2 Nh6 9. Qd1 Qg5 10. Nf3 Qh5 11. Nbd2 Ng4 12. Be2 Qf5 13. O-O h5 14. Bd3 Qf4 15. Re1 a6 16. h3 Nh6 17. g3 {1-0 Petrova,I (2127)-Cagara,P (2045) Titled Tuesday intern op 10th May Early blitz 2022 (6)}) 8. Qg3 {[%emt 0:00:20] The position is equal.} g6 {[%emt 0:03:03]} (8... Nd7 $15) 9. Bd3 {[%emt 0:01:29]} Bg7 {[%emt 0:02:26]} 10. Nf3 {[%emt 0:05:36]} Ne7 {[%emt 0:02:54]} (10... h4 $1 $11 11. Qg4 Qc7) 11. Bg5 $36 {[%emt 0:01:31][%mdl 2048] White has some pressure.} Qc7 {[%emt 0:03:03]} 12. O-O $1 {[%emt 0:01:56]} O-O {[%emt 0:02:33]} 13. Re1 {[%emt 0:06:53]} Re8 {[%emt 0:05:14]} 14. Nbd2 {[%emt 0:06:05][%cal Bb1d2,Bd2f3,Bf3g5][%mdl 32]} Nd7 {[%emt 0:06:15]} (14... a5 $16) 15. Bf4 $2 {[%emt 0:02:48]} ({Better is} 15. c4 $18) 15... Nb6 {[%emt 0:02:14]} (15... a5 $1 $11) 16. Ng5 $1 $16 {[%emt 0:02:32]} Bd7 {[%emt 0:06:44]} 17. Ndf3 {[%emt 0:02:36] White is more active.} a6 {[%emt 0:03:26]} (17... Nc4 $16) 18. Qh3 $18 {[%emt 0:04:01]} Bb5 {[%emt 0:17:29][%cal Od5d4] [#]} 19. Nxf7 $1 {[%emt 0:10:11][%mdl 576] Decoy, Clearance} Bxd3 {[%emt 0:05:47]} 20. cxd3 {[%emt 0:00:07]} Kxf7 {[%emt 0:07:26]} (20... Nf5 {was worth a try.}) 21. Ng5+ {[%emt 0:00:05][%mdl 64] Deflection, Double Attack} Kg8 {[%emt 0:00:09] White must now prevent ...Nc6.} 22. Qxe6+ {[%emt 0:00:03]} Kh8 {[%emt 0:00:09]} 23. Qf7 $2 {[%emt 0:00:45]} (23. Rac1 $18 Qd7 24. Qxb6) 23... Rf8 $14 {[%emt 0:02:12] [#]} 24. Qxg7+ {[%emt 0:00:31][%mdl 64] Decoy} Kxg7 {[%emt 0:00:06]} 25. Ne6+ {[%emt 0:00:05]} Kg8 {[%emt 0:01:01]} 26. Nxc7 {[%emt 0:00:05]} Rxf4 {[%emt 0:00:19]} 27. Nxa8 {[%emt 0:00:06]} Nxa8 {[%emt 0:00:02]} 28. Rac1 {[%emt 0:02:29]} Nc6 {[%emt 0:00:55]} 29. g3 {[%emt 0:01:00]} Rf8 {[%emt 0:03:50] [#]} (29... Rf3 $11) 30. e6 {[%emt 0:01:08]} ({White should try} 30. Rc5 $1 $16) 30... Re8 $11 {[%emt 0:00:11]} 31. Rc5 $1 {[%emt 0:01:14]} Nc7 {[%emt 0:02:57]} 32. Kg2 {[%emt 0:01:08]} ({Reject} 32. e7 Kf7 $15) (32. a4 $11) 32... Kf8 $15 {[%emt 0:00:28]} 33. e7+ {[%emt 0:04:43]} Rxe7 {[%emt 0:00:31]} 34. Rxe7 {[%emt 0:00:09]} (34. Rec1 $1 $15) 34... Kxe7 $17 {[%emt 0:00:05]} 35. f4 {[%emt 0:00:15]} Kd6 {[%emt 0:04:22]} 36. Rc1 {[%emt 0:01:30]} d4 {[%emt 0:01:42]} 37. g4 {[%emt 0:01:22]} Nd5 {[%emt 0:05:00]} 38. Kf3 {[%emt 0:00:34]} hxg4+ {[%emt 0:00:48]} 39. Kxg4 {[%emt 0:00:14] [#]} Nd8 $1 {[%emt 0:00:16]} 40. Kg5 $2 {[%emt 0:00:00][%mdl 8192]} (40. f5 $17 Ne3+ 41. Kf3 Nxf5 42. Kf4) 40... Ne6+ $19 {[%emt 0:00:00]} 41. Kxg6 {[%emt 0:13:44]} Nexf4+ {[%emt 0:13:18]} ({Weaker is} 41... Ndxf4+ 42. Kf5 Nxd3 43. Rd1 $17) 42. Kf5 {[%emt 0:05:17]} (42. Kh6 {is a better defense.} Nxd3 43. Rd1) 42... Nxd3 {[%emt 0:00:24] A dynamic duo of knights.} 43. Rg1 {[%emt 0:00:02]} N3f4 {[%emt 0:05:23] Wards off Rg6+} (43... Ne5 $142 {And now ...d3 would win.} 44. Rh1 Nc3) 44. Ke4 {[%emt 0:04:16]} d3 {[%emt 0:01:58]} 45. Rf1 {[%emt 0:01:13]} Ke6 $2 {[%emt 0:14:34]} (45... d2 $19 {and Black stays clearly on top. ...Ng2 is the strong threat.} 46. Kd4 Ng2) 46. h4 $2 {[%emt 0:02:09]} (46. b5 $17) 46... Kf6 $2 {[%emt 0:00:57]} (46... d2 $19 {has better winning chances. ...Ng2 would be deadly.} 47. Ra1 Nh3) 47. Rf2 {[%emt 0:01:39] Prevents . Never resign too early!   Weighted Error Value: White=0.57/Black=0.54} (47. a4 $17 {keeps fighting.}) 1/2-1/2

[Event "Polish Youth B18 Championship 2023"]
[Site "Jastrzebia Gora"]
[Date "2023.03.19"]
[Round "9.14"]
[White "Kitewski, Bartosz"]
[Black "Wilk, Igor"]
[Result "1/2-1/2"]
[ECO "A57"]
[WhiteElo "1968"]
[BlackElo "2058"]
[Annotator "TA"]
[PlyCount "56"]
[EventDate "2023.03.11"]
[EventType "swiss"]
[EventCountry "POL"]
[SourceTitle "playchess.com"]
[Source "ChessBase"]
[SourceQuality "1"]
[TimeControl "40/5400+30:1800+30"]

{[%evp 17,56,16,25,0,0,0,30,-3,56,32,31,49,42,16,71,61,72,18,16,25,21,7,42,43,28,18,31,25,51,51,74,78,81,51,126,0,72,0,127,0,87]} 1. d4 {[%emt 0:03:10]} Nf6 {[%emt 0:00:08]} 2. c4 {[%emt 0:00:04][%cal Bc2c4,Bc4b5,Bb5b6][%mdl 32]} c5 {[%emt 0:00:04]} 3. d5 {[%emt 0:00:04]} b5 {[%emt 0:00:04]} 4. cxb5 {[%emt 0:00:16]} a6 {[%emt 0:00:06]} 5. b6 {[%emt 0:01:25]} g6 {[%emt 0:00:08]} 6. Nc3 {[%emt 0:00:04]} Bg7 {[%emt 0:00:27]} 7. Nf3 {[%emt 0:00:07]} O-O {[%emt 0:00:36]} 8. e4 {[%emt 0:00:05]} d6 {[%emt 0:00:09]} 9. h3 {[%emt 0:01:27]} Qxb6 {[%emt 0:00:53]} 10. Bc4 {[%emt 0:02:10] E90: King's Indian: Classical: Early deviations and 6 h3.} Qb4 {[%emt 0:10:43] [#]} 11. Nd2 $146 {[%emt 0:01:36]} ({Predecessor:} 11. Qb3 a5 12. Nd2 Ba6 13. Qxb4 cxb4 14. Bxa6 bxc3 15. bxc3 Nxa6 {0-1 Nordenstrom,S (1961)-Nyholm,T SWE-chT2 0910 2009 (1)}) 11... Nbd7 {[%emt 0:02:44]} 12. O-O {[%emt 0:00:54] White has an edge.} Qb7 {[%emt 0:00:51]} (12... Nh5 $11) 13. Re1 {[%emt 0:01:11]} Nb6 {[%emt 0:00:34]} 14. Bf1 {[%emt 0:03:05]} e6 {[%emt 0:01:19]} 15. Nc4 {[%emt 0:03:39]} exd5 {[%emt 0:09:06]} (15... Nxc4 $11 {keeps the balance.} 16. Bxc4 Re8) 16. Nxd6 $16 {[%emt 0:10:33] White is more active.} Qc6 {[%emt 0:00:12]} 17. Nxc8 {[%emt 0:00:06]} (17. e5 $16 Ne8 18. Nxc8 {[%mdl 64] Remove Defender} Rxc8 19. Bxa6) 17... Rfxc8 $11 {[%emt 0:01:10]} 18. exd5 {[%emt 0:01:04]} Nfxd5 {[%emt 0:01:23]} 19. Nxd5 {[%emt 0:00:11]} Qxd5 {[%emt 0:00:40]} 20. Qc2 {[%emt 0:01:17]} a5 {[%emt 0:05:49]} 21. Bd2 {[%emt 0:03:57]} Rd8 {[%emt 0:07:19]} 22. Bf4 {[%emt 0:10:18]} Rac8 {[%emt 0:04:53] Dodges Bc7} 23. Rad1 {[%emt 0:05:27]} Bd4 {[%emt 0:00:30]} 24. Ba6 {[%emt 0:06:50]} Ra8 {[%emt 0:01:59]} 25. Be2 {[%emt 0:01:32] Black must now prevent Bf3.} Rac8 {[%emt 0:01:50] [#]} ({Black should try} 25... Qxa2 $14 26. Bc7 Qa4) 26. Ba6 {[%emt 0:05:06] A strong pair of Bishops.} (26. Bg4 $142 $1 {[%cal Rg4c8]}) 26... Ra8 $16 {[%emt 0:00:17]} 27. Be2 {[%emt 0:01:09]} ({White should play} 27. Bb5) 27... Rac8 $1 {[%emt 0:00:51]} 28. Ba6 {[%emt 0:06:44]} Ra8 {[%emt 0:02:44] Weighted Error Value: White=0.34/Black=0.22 (precise)} 1/2-1/2